bitfinex/quotes_BTCUSD_20241119
["timestamp","ask_amount","ask_price","bid_price","bid_amount"]
[1732029108024,0.02022587,92182.0,92179.0,0.108484]
[1732029108215,0.03236086,92191.0,92190.0,0.108471]
[1732029108469,0.03235691,92202.0,92180.0,0.10906255]
[1732029108633,0.03235236,92207.0,92190.0,0.10906255]
[1732029109068,0.02021825,92206.0,92191.0,0.10906255]
[1732029109475,0.02021825,92205.0,92196.0,0.108464]
[1732029109699,0.108449,92210.0,92191.0,0.10906255]
[1732029109921,0.02021772,92209.0,92196.0,0.108463]
[1732029110154,0.61942315,92211.0,92191.0,0.10906255]
[1732029110155,0.02021772,92208.0,92191.0,0.10906255]
[1732029110406,0.02021772,92207.0,92193.0,0.216936]
[1732029110647,0.108465,92196.0,92187.0,0.16263953]
[1732029110891,0.108449,92209.0,92194.0,0.108465]
[1732029111159,0.16263953,92204.0,92177.0,0.13494729]
[1732029111377,0.10847,92191.0,92187.0,0.16263953]
[1732029111604,0.16263953,92206.0,92177.0,0.10906255]
[1732029111811,0.108472,92190.0,92177.0,0.10906255]
[1732029112035,0.05257597,92205.0,92176.0,0.16263953]
[1732029112036,0.02022153,92189.0,92186.0,0.16263953]
[1732029112284,0.17619267,92204.0,92187.0,0.10906255]
[1732029112499,0.052579,92203.0,92198.0,0.108462]
[1732029112768,0.16263953,92204.0,92188.0,0.108473]
[1732029112769,0.161037,92202.0,92188.0,0.108473]
[1732029113049,0.02022305,92201.0,92189.0,0.27111153]
[1732029113279,0.51097715,92211.0,92189.0,0.27111153]
[1732029113280,0.02022305,92200.0,92189.0,0.27170208]
[1732029113494,0.02022305,92199.0,92190.0,0.108471]
[1732029113723,0.216905,92207.0,92192.0,0.108468]
[1732029113724,0.02022305,92198.0,92192.0,0.108468]
[1732029113944,0.02022305,92197.0,92189.0,0.27170208]
[1732029114165,0.02022305,92196.0,92189.0,0.10906255]
[1732029114393,0.263076,92219.0,92189.0,0.10906255]
[1732029114394,0.01355353,92210.0,92189.0,0.10906255]
[1732029114632,0.01355353,92210.0,92190.0,0.108471]
[1732029114633,0.05258218,92209.0,92190.0,0.108471]
[1732029114846,0.02022376,92208.0,92202.0,0.108457]
[1732029115076,0.02022376,92207.0,92191.0,0.10906255]
[1732029115293,0.02022376,92206.0,92196.0,0.216929]
[1732029115520,0.02022376,92205.0,92198.0,0.216924]
[1732029115739,0.02022376,92205.0,92201.0,0.108457]
[1732029115740,0.02022463,92205.0,92201.0,0.108457]
[1732029115965,0.16263953,92216.0,92198.0,0.10906255]
[1732029115966,0.02022463,92204.0,92198.0,0.10906255]
[1732029116218,0.02022463,92203.0,92198.0,0.10906255]
[1732029116440,0.02022463,92202.0,92198.0,0.10906255]
[1732029116656,0.02022463,92201.0,92198.0,0.10906255]
[1732029116910,0.0008554,92208.0,92200.0,0.108459]
[1732029117124,0.02022461,92207.0,92198.0,0.10906255]
[1732029117350,0.02022461,92206.0,92200.0,0.108459]
[1732029117575,0.02022461,92206.0,92198.0,0.10906255]
[1732029117576,0.02022461,92205.0,92198.0,0.10906255]
[1732029117797,0.02022461,92204.0,92198.0,0.10906255]
[1732029118030,0.02022461,92203.0,92198.0,0.10906255]
[1732029118247,0.02022461,92203.0,92198.0,0.21752455]
[1732029118476,0.02022461,92202.0,92200.0,0.108459]
[1732029118711,0.02022461,92201.0,92200.0,0.108459]
[1732029118924,0.44305716,92211.0,92198.0,0.10506255]
[1732029119165,0.44305716,92211.0,92202.0,0.108456]
[1732029119386,0.44305716,92211.0,92199.0,0.00069111]
[1732029119612,0.44305716,92211.0,92204.0,0.21691]
[1732029119857,0.44305716,92211.0,92202.0,0.10906255]
[1732029119858,0.44305716,92211.0,92205.0,0.108453]
[1732029120099,0.44305716,92211.0,92209.0,0.108449]
[1732029120318,0.44305716,92211.0,92202.0,0.10906255]
[1732029120572,0.44305716,92211.0,92171.0,0.216986]
[1732029120573,0.44305716,92211.0,92196.0,0.1]
[1732029120792,0.44305716,92211.0,92210.0,0.108448]
[1732029121275,0.44305716,92211.0,92207.0,0.023]
[1732029121495,0.44305716,92211.0,92208.0,0.10906255]
[1732029122149,0.44305716,92211.0,92210.0,0.108448]
[1732029122641,0.44305716,92211.0,92208.0,0.32596055]
[1732029122853,0.44305716,92211.0,92210.0,0.108448]
[1732029123299,0.44305716,92211.0,92208.0,0.10906255]
[1732029123510,0.44305716,92211.0,92209.0,0.108448]
[1732029123726,0.44305716,92211.0,92209.0,0.10906255]
[1732029124136,0.44305716,92211.0,92204.0,0.13456702]
[1732029124851,0.44305716,92211.0,92210.0,0.108448]
[1732029125053,0.44305716,92211.0,92206.0,0.216905]
[1732029125262,0.44305716,92211.0,92204.0,0.13456702]
[1732029125263,0.44305716,92211.0,92204.0,0.03456702]
[1732029125464,0.44305716,92211.0,92190.0,0.023]
[1732029125672,0.108449,92209.0,92199.0,0.023]
[1732029125891,0.44305716,92211.0,92200.0,0.10906255]
[1732029126583,0.44305716,92211.0,92191.0,0.216939]
[1732029126584,0.0487,92209.0,92180.0,0.16263953]
[1732029126804,0.108464,92196.0,92195.0,0.16263953]
[1732029127004,0.52315716,92211.0,92195.0,0.16263953]
[1732029127005,0.03237494,92204.0,92195.0,0.16263953]
[1732029127224,0.52315716,92211.0,92181.0,0.10906255]
[1732029127427,0.03237917,92210.0,92191.0,0.16263953]
[1732029127644,0.1950187,92210.0,92193.0,0.108467]
[1732029127856,0.1950187,92210.0,92180.0,0.16263953]
[1732029127857,0.27170208,92210.0,92180.0,0.16263953]
[1732029128104,0.14144172,92210.0,92190.0,0.16263953]
[1732029128331,0.10845,92208.0,92180.0,0.16263953]
[1732029128528,0.17263953,92210.0,92180.0,0.16263953]
[1732029128529,0.108467,92194.0,92190.0,0.16263953]
[1732029128749,0.108463,92197.0,92190.0,0.16263953]
[1732029128962,0.44305716,92211.0,92190.0,0.16263953]
[1732029128963,0.108458,92202.0,92190.0,0.16263953]
[1732029129168,0.108458,92202.0,92189.0,0.216943]
[1732029129169,0.108469,92192.0,92189.0,0.0017102]
[1732029129379,0.03237917,92209.0,92190.0,0.16263953]
[1732029129586,0.44305716,92211.0,92189.0,0.0017102]
[1732029129587,0.16263953,92204.0,92189.0,0.0017102]
[1732029129790,0.216905,92206.0,92190.0,0.16263953]
[1732029130019,0.44305716,92211.0,92190.0,0.16263953]
[1732029130020,0.108451,92208.0,92191.0,0.21694]
[1732029130302,0.44305716,92211.0,92190.0,0.16263953]
[1732029130549,0.108457,92202.0,92190.0,0.16263953]
[1732029130752,0.44305716,92211.0,92192.0,0.023]
[1732029130971,0.44305716,92211.0,92189.0,0.0017102]
[1732029130972,0.18287552,92210.0,92189.0,0.0017102]
[1732029131191,0.2169,92208.0,92192.0,0.16263953]
[1732029131408,0.44305716,92211.0,92192.0,0.16263953]
[1732029131409,0.108454,92205.0,92192.0,0.16263953]
[1732029131621,0.44305716,92211.0,92189.0,0.0017102]
[1732029131622,0.108458,92202.0,92189.0,0.0017102]
[1732029131863,0.02023517,92210.0,92190.0,0.16263953]
[1732029132085,0.02023517,92210.0,92189.0,0.0017102]
[1732029132086,0.216924,92198.0,92189.0,0.0017102]
[1732029132347,0.108471,92190.0,92189.0,0.0017102]
[1732029132818,0.12870899,92190.0,92189.0,0.0017102]
[1732029133913,0.216951,92187.0,92180.0,0.14434973]
[1732029134124,0.108482,92181.0,92180.0,0.14434973]
[1732029134331,0.02023799,92181.0,92170.0,0.16263953]
[1732029134541,0.02023799,92181.0,92171.0,0.16263953]
[1732029134542,0.10849,92174.0,92171.0,0.16263953]
[1732029134992,0.10849,92174.0,92167.0,0.0017106]
[1732029135248,0.12873697,92174.0,92167.0,0.0017106]
[1732029136392,0.23779952,92174.0,92167.0,0.0017106]
[1732029136652,0.48395594,92174.0,92167.0,0.0017106]
[1732029136847,0.51879322,92174.0,92167.0,0.0017106]
[1732029137084,0.48639952,92174.0,92167.0,0.0017106]
[1732029138672,0.58559263,92174.0,92167.0,0.0017106]
[1732029138887,0.58559263,92174.0,92150.0,0.16263953]
[1732029138888,0.108517,92151.0,92150.0,0.16263953]
[1732029139180,0.23782652,92151.0,92150.0,0.16263953]
[1732029139413,0.10853,92140.0,92139.0,0.16263953]
[1732029139833,0.108531,92139.0,92128.0,0.0017098]
[1732029140037,0.02020427,92145.0,92128.0,0.0017098]
[1732029140038,0.108529,92141.0,92128.0,0.0017098]
[1732029140277,0.02020427,92145.0,92139.0,0.16263953]
[1732029140539,0.03232724,92161.0,92128.0,0.0017098]
[1732029140540,0.0201844,92160.0,92140.0,0.10906255]
[1732029140752,0.16263953,92163.0,92155.0,0.108512]
[1732029140958,0.24203953,92173.0,92141.0,0.023]
[1732029140959,0.0201844,92171.0,92141.0,0.023]
[1732029141166,0.16263953,92173.0,92149.0,0.16263953]
[1732029141372,0.16263953,92173.0,92142.0,0.10906255]
[1732029141616,0.16263953,92173.0,92150.0,0.16263953]
[1732029141839,0.216961,92183.0,92150.0,0.16263953]
[1732029141840,0.0201844,92178.0,92151.0,0.13206255]
[1732029142042,0.0755,92186.0,92151.0,0.13206255]
[1732029142043,0.16263953,92173.0,92155.0,0.023]
[1732029142256,0.16263953,92173.0,92157.0,0.023]
[1732029142488,0.216969,92180.0,92159.0,0.108507]
[1732029142702,0.02188679,92181.0,92164.0,0.108501]
[1732029142913,0.02017619,92180.0,92164.0,0.108501]
[1732029143130,0.02017619,92180.0,92161.0,0.16263953]
[1732029143340,0.02017619,92180.0,92161.0,0.27170208]
[1732029143586,0.02017619,92180.0,92162.0,0.217009]
[1732029143819,0.0017106,92181.0,92161.0,0.27170208]
[1732029144053,0.0017106,92181.0,92164.0,0.1]
[1732029144257,0.0017106,92181.0,92166.0,0.123]
[1732029144470,0.0017106,92181.0,92173.0,0.10849]
[1732029144907,0.0017106,92181.0,92162.0,0.0779]
[1732029144908,0.27112353,92180.0,92158.0,0.108509]
[1732029145147,0.01,92176.0,92160.0,0.16263953]
[1732029145372,0.108505,92162.0,92160.0,0.16263953]
[1732029145652,0.0827,92172.0,92150.0,0.16263953]
[1732029145653,0.325492,92168.0,92161.0,0.16263953]
[1732029145867,0.325492,92168.0,92150.0,0.16263953]
[1732029145868,0.108509,92159.0,92150.0,0.16263953]
[1732029146095,0.216999,92166.0,92150.0,0.16263953]
[1732029146323,0.10906255,92166.0,92150.0,0.16263953]
[1732029146571,0.23717587,92165.0,92150.0,0.16263953]
[1732029146783,0.108507,92160.0,92150.0,0.16263953]
[1732029147009,0.108513,92155.0,92150.0,0.16263953]
[1732029147247,0.217006,92163.0,92150.0,0.16263953]
[1732029147248,0.108503,92163.0,92150.0,0.16263953]
[1732029147467,0.108505,92162.0,92143.0,0.325579]
[1732029147712,0.01,92185.0,92149.0,0.16263953]
[1732029147912,0.16263953,92169.0,92154.0,0.09540912]
[1732029148118,0.10906255,92179.0,92154.0,0.31243712]
[1732029148336,0.10906255,92179.0,92155.0,0.217025]
[1732029148337,0.21672013,92177.0,92155.0,0.217025]
[1732029148578,0.10906255,92179.0,92156.0,0.108511]
[1732029148791,0.0462,92180.0,92163.0,0.16263953]
[1732029149005,0.0017106,92181.0,92164.0,0.10906255]
[1732029149498,0.0017106,92181.0,92165.0,0.37964153]
[1732029149731,0.0017106,92181.0,92166.0,0.10906255]
[1732029150175,0.108488,92176.0,92161.0,0.09540912]
[1732029150378,0.108488,92176.0,92155.0,0.19081824]
[1732029150379,0.108485,92179.0,92163.0,0.16263953]
[1732029150620,0.0017106,92181.0,92151.0,0.295433]
[1732029150621,0.108492,92173.0,92156.0,0.1]
[1732029150818,0.216973,92177.0,92163.0,0.16263953]
[1732029151047,0.16263953,92176.0,92156.0,0.1]
[1732029151289,0.0017106,92181.0,92156.0,0.1]
[1732029151497,0.1101926,92181.0,92158.0,0.217018]
[1732029151704,0.16435013,92181.0,92160.0,0.108506]
[1732029151928,0.16435013,92181.0,92159.0,0.10906255]
[1732029152163,0.0017106,92181.0,92163.0,0.16263953]
[1732029152369,0.0017106,92181.0,92167.0,0.108498]
[1732029152577,0.0017106,92181.0,92165.0,0.217002]
[1732029152792,0.0017106,92181.0,92169.0,0.108496]
[1732029152998,0.0017106,92181.0,92165.0,0.32606455]
[1732029153208,0.0017106,92181.0,92166.0,0.216999]
[1732029153471,0.0017106,92181.0,92165.0,0.10852582]
[1732029153700,0.0017106,92181.0,92165.0,0.21702582]
[1732029153907,0.0017106,92181.0,92165.0,0.10852582]
[1732029154111,0.1101926,92181.0,92165.0,0.10852582]
[1732029154542,0.1101926,92181.0,92158.0,0.217016]
[1732029154543,0.216966,92180.0,92154.0,0.19546438]
[1732029154748,0.0017106,92181.0,92154.0,0.19546438]
[1732029154749,0.0017106,92181.0,92163.0,0.16263953]
[1732029154973,0.108493,92172.0,92163.0,0.16263953]
[1732029155193,0.21698,92175.0,92163.0,0.16263953]
[1732029155432,0.0017106,92181.0,92165.0,0.0017106]
[1732029155667,0.1101936,92181.0,92167.0,0.16263953]
[1732029155916,0.1101936,92181.0,92168.0,0.10906255]
[1732029155917,0.0017106,92181.0,92168.0,0.10906255]
[1732029156154,0.0017106,92181.0,92165.0,0.0017106]
[1732029156366,0.0017106,92181.0,92166.0,0.16263953]
[1732029156807,0.0017106,92181.0,92167.0,0.32605855]
[1732029157093,0.0017106,92181.0,92180.0,0.108483]
[1732029157291,0.0017106,92181.0,92180.0,0.21754555]
[1732029157508,0.0017106,92181.0,92180.0,0.36074213]
[1732029157749,0.0017106,92181.0,92180.0,0.56963984]
[1732029157984,0.0017106,92181.0,92180.0,0.21754555]
[1732029158208,0.0017106,92181.0,92180.0,0.31297469]
[1732029158660,0.0017106,92181.0,92180.0,0.31296835]
[1732029158876,0.0017106,92181.0,92180.0,0.21754555]
[1732029159572,0.108454,92205.0,92188.0,0.108472]
[1732029159789,0.16263953,92194.0,92188.0,0.108472]
[1732029160023,0.216908,92205.0,92181.0,0.10906255]
[1732029160259,0.108455,92204.0,92183.0,0.10906255]
[1732029160475,0.236883,92216.0,92183.0,0.10906255]
[1732029160476,0.0008539,92213.0,92188.0,0.16263953]
[1732029160686,0.0008539,92213.0,92198.0,0.108461]
[1732029160946,0.0008539,92213.0,92189.0,0.20906255]
[1732029161167,0.0008539,92213.0,92210.0,0.27108753]
[1732029161395,0.0008539,92213.0,92210.0,0.31751055]
[1732029161634,0.0008539,92213.0,92210.0,0.46064653]
[1732029161884,0.0008539,92213.0,92210.0,0.5839183]
[1732029162125,0.0008539,92213.0,92212.0,0.231445]
[1732029162364,0.0008539,92213.0,92212.0,0.34050755]
[1732029162581,0.0008539,92213.0,92212.0,0.31750755]
[1732029162829,0.0008539,92213.0,92212.0,0.41277171]
[1732029163049,0.0008539,92213.0,92212.0,0.31750755]
[1732029163308,0.07449343,92224.0,92213.0,0.1]
[1732029163520,0.16263953,92213.0,92206.0,0.09526253]
[1732029163744,0.108435,92221.0,92204.0,0.108454]
[1732029163961,0.03352774,92225.0,92202.0,0.27170208]
[1732029164176,0.03352774,92225.0,92203.0,0.108456]
[1732029164387,0.10843,92225.0,92204.0,0.21691]
[1732029164635,0.27106753,92227.0,92211.0,0.108446]
[1732029164894,0.108435,92221.0,92203.0,0.1]
[1732029165132,0.108435,92221.0,92206.0,0.108452]
[1732029165368,0.19665551,92227.0,92207.0,0.10906255]
[1732029165609,0.10843,92226.0,92207.0,0.10906255]
[1732029165827,0.216864,92224.0,92203.0,0.1]
[1732029166041,0.19665551,92227.0,92203.0,0.1]
[1732029166042,0.108435,92221.0,92206.0,0.108452]
[1732029166277,0.19665551,92227.0,92204.0,0.21691]
[1732029166278,0.41351151,92227.0,92204.0,0.21691]
[1732029166514,0.108437,92219.0,92206.0,0.108452]
[1732029166760,0.108437,92219.0,92194.0,0.216933]
[1732029166761,0.216882,92216.0,92186.0,0.075]
[1732029167000,0.108449,92210.0,92199.0,0.16263953]
[1732029167233,0.108452,92207.0,92192.0,0.108468]
[1732029167501,0.108452,92207.0,92193.0,0.108467]
[1732029167725,0.16263953,92215.0,92191.0,0.108469]
[1732029167726,0.108443,92214.0,92191.0,0.108469]
[1732029167932,0.16263953,92215.0,92193.0,0.108467]
[1732029168403,0.16263953,92215.0,92190.0,0.10906255]
[1732029168631,0.108455,92204.0,92191.0,0.108469]
[1732029168841,0.108458,92202.0,92190.0,0.10906255]
[1732029169311,0.216889,92213.0,92190.0,0.10906255]
[1732029169542,0.19757735,92215.0,92190.0,0.10906255]
[1732029169772,0.108456,92203.0,92190.0,0.10906255]
[1732029170010,0.19757735,92215.0,92190.0,0.10906255]
[1732029170230,0.108469,92192.0,92180.0,0.108482]
[1732029170439,0.108468,92193.0,92188.0,0.16263953]
[1732029170683,0.108468,92193.0,92181.0,0.10906255]
[1732029170684,0.108468,92193.0,92182.0,0.1]
[1732029170909,0.108485,92179.0,92172.0,0.09533755]
[1732029171170,0.21694,92191.0,92169.0,0.16263953]
[1732029171171,0.108489,92175.0,92169.0,0.16263953]
[1732029171442,0.108475,92187.0,92169.0,0.16263953]
[1732029171651,0.108475,92187.0,92165.0,0.11077315]
[1732029171652,0.108476,92186.0,92172.0,0.108491]
[1732029171863,0.216963,92182.0,92165.0,0.11077315]
[1732029172082,0.216947,92188.0,92165.0,0.11077315]
[1732029172293,0.16263953,92189.0,92165.0,0.11077315]
[1732029172540,0.108499,92166.0,92165.0,0.0017106]
[1732029172933,0.01,92178.0,92165.0,0.0017106]
[1732029173149,0.108499,92166.0,92165.0,0.0017106]
[1732029174119,0.37636155,92166.0,92165.0,0.0017106]
[1732029174358,0.41113809,92166.0,92165.0,0.0017106]
[1732029175034,0.42113809,92166.0,92165.0,0.0017106]
[1732029175494,0.42113809,92166.0,92121.0,0.1430586]
[1732029175495,0.01,92151.0,92120.0,0.0953724]
[1732029175725,0.16457654,92166.0,92140.0,0.16263953]
[1732029175944,0.5409,92198.0,92140.0,0.16263953]
[1732029175945,0.01,92178.0,92140.0,0.16263953]
[1732029176198,0.108491,92174.0,92140.0,0.16263953]
[1732029176435,0.0814,92181.0,92140.0,0.17263953]
[1732029176436,0.216969,92179.0,92140.0,0.17263953]
[1732029176659,0.03397789,92189.0,92149.0,0.217039]
[1732029176900,0.1403,92194.0,92149.0,0.217039]
[1732029176901,0.16263953,92170.0,92154.0,0.217028]
[1732029177162,0.16263953,92186.0,92159.0,0.09533883]
[1732029177403,0.16263953,92174.0,92173.0,0.108491]
[1732029177668,0.16263953,92186.0,92185.0,0.108477]
[1732029178122,0.16263953,92186.0,92183.0,0.216958]
[1732029178123,0.16263953,92186.0,92180.0,0.108482]
[1732029178399,0.16263953,92186.0,92167.0,0.16263953]
[1732029178400,0.108476,92186.0,92167.0,0.16263953]
[1732029178633,0.01,92199.0,92167.0,0.16263953]
[1732029178634,0.0875,92206.0,92168.0,0.10906255]
[1732029178875,0.16263953,92192.0,92175.0,0.216978]
[1732029179096,0.16263953,92192.0,92177.0,0.108486]
[1732029179311,0.16263953,92192.0,92175.0,0.216978]
[1732029179312,0.16263953,92192.0,92180.0,0.108482]
[1732029179535,0.27110853,92192.0,92180.0,0.108483]
[1732029179747,0.216926,92197.0,92178.0,0.10906255]
[1732029179964,0.16263953,92189.0,92164.0,0.16263953]
[1732029180202,0.01,92185.0,92164.0,0.16251664]
[1732029180432,0.01,92185.0,92161.0,0.16263953]
[1732029180433,0.15456255,92184.0,92161.0,0.16263953]
[1732029180668,0.108495,92171.0,92161.0,0.16263953]
[1732029180906,0.108496,92169.0,92150.0,0.16263953]
[1732029181147,0.01,92177.0,92151.0,0.16263953]
[1732029181391,0.21701,92162.0,92144.0,0.10906255]
[1732029181608,0.10852,92149.0,92144.0,0.10906255]
[1732029181836,0.16263953,92145.0,92137.0,0.09532207]
[1732029182059,0.108525,92144.0,92128.0,0.09703187]
[1732029182329,0.108525,92144.0,92129.0,0.16263953]
[1732029183532,0.1,92160.0,92129.0,0.37972453]
[1732029183787,0.108525,92144.0,92134.0,0.108537]
[1732029184000,0.1,92160.0,92133.0,0.217076]
[1732029184205,0.108525,92144.0,92129.0,0.37972453]
[1732029184457,0.217038,92150.0,92129.0,0.37972453]
[1732029184629,0.217038,92150.0,92135.0,0.108536]
[1732029184848,0.108525,92144.0,92131.0,0.10854]
[1732029185067,0.21758755,92144.0,92128.0,0.0017098]
[1732029185253,0.41978755,92144.0,92128.0,0.0017098]
[1732029185494,0.108543,92129.0,92128.0,0.0017098]
[1732029185700,0.21760555,92129.0,92128.0,0.0017098]
[1732029187672,0.108543,92129.0,92128.0,0.0017098]
[1732029188568,0.03341074,92140.0,92128.0,0.0017098]
[1732029188777,0.108543,92130.0,92128.0,0.0017098]
[1732029188992,0.108543,92129.0,92128.0,0.0017098]
[1732029189897,0.217021,92157.0,92128.0,0.0017098]
[1732029189898,0.03481097,92144.0,92128.0,0.0017098]
[1732029190105,0.37971253,92135.0,92128.0,0.0017098]
[1732029190311,0.108543,92129.0,92128.0,0.0017098]
[1732029190571,0.217073,92135.0,92128.0,0.0017098]
[1732029190990,0.108543,92129.0,92128.0,0.0017098]
[1732029191203,0.217092,92127.0,92113.0,0.1]
[1732029191412,0.10854,92132.0,92120.0,0.108553]
[1732029191632,0.27118053,92131.0,92120.0,0.108553]
[1732029191908,0.108565,92111.0,92106.0,0.0017104]
[1732029192129,0.16263953,92131.0,92107.0,0.16263953]
[1732029192337,0.108567,92109.0,92106.0,0.0017104]
[1732029192753,0.217104,92122.0,92106.0,0.0017104]
[1732029193005,0.16263953,92120.0,92106.0,0.0017104]
[1732029193252,0.108562,92113.0,92106.0,0.0017104]
[1732029193458,0.108567,92109.0,92106.0,0.0017104]
[1732029193738,0.22762955,92109.0,92106.0,0.0017104]
[1732029193924,0.27362955,92109.0,92106.0,0.0017104]
[1732029194131,0.230569,92107.0,92106.0,0.0017104]
[1732029194360,0.44213341,92107.0,92106.0,0.0017104]
[1732029194790,0.44013341,92107.0,92106.0,0.0017104]
[1732029195010,0.33763155,92107.0,92106.0,0.0017104]
[1732029195233,0.218569,92107.0,92106.0,0.0017104]
[1732029195689,0.33763155,92107.0,92106.0,0.0017104]
[1732029195958,0.33763155,92107.0,92087.0,0.001178]
[1732029195959,0.01,92091.0,92087.0,0.001178]
[1732029196172,0.0716,92106.0,92087.0,0.001178]
[1732029196173,0.228591,92088.0,92087.0,0.001178]
[1732029196637,0.33765355,92088.0,92087.0,0.001178]
[1732029197995,0.33765355,92088.0,92057.0,0.16263953]
[1732029198217,0.33765355,92088.0,92030.0,0.19882634]
[1732029198218,0.19021,92072.0,92046.0,0.16263953]
[1732029198477,0.108625,92059.0,92058.0,0.16263953]
[1732029198671,0.227249,92061.0,92046.0,0.16263953]
[1732029198672,0.01,92061.0,92046.0,0.16263953]
[1732029198882,0.108634,92052.0,92046.0,0.16263953]
[1732029199106,0.108634,92052.0,92028.0,0.108662]
[1732029199317,0.108634,92052.0,92029.0,0.108661]
[1732029199538,0.108634,92052.0,92015.0,0.2190652]
[1732029199539,0.22769655,92052.0,92015.0,0.0017102]
[1732029199791,0.118653,92036.0,92015.0,0.16434973]
[1732029199983,0.108653,92036.0,92025.0,0.16263953]
[1732029200197,0.108653,92036.0,92015.0,0.16434973]
[1732029200413,0.217303,92038.0,92015.0,0.16434973]
[1732029200414,0.217289,92044.0,92015.0,0.16434973]
[1732029200627,0.16263953,92050.0,92015.0,0.16434973]
[1732029200867,0.108653,92036.0,92015.0,0.16434973]
[1732029201076,0.108653,92036.0,92016.0,0.37999053]
[1732029201298,0.217288,92044.0,92021.0,0.217341]
[1732029201512,0.03416773,92042.0,92023.0,0.108667]
[1732029201746,0.108653,92036.0,92017.0,0.16263953]
[1732029201945,0.10906255,92041.0,92017.0,0.16263953]
[1732029201946,0.10865,92039.0,92017.0,0.16263953]
[1732029202189,0.11604666,92053.0,92017.0,0.16263953]
[1732029202190,0.21727,92051.0,92025.0,0.108665]
[1732029202391,0.16263953,92044.0,92021.0,0.21734]
[1732029202596,0.108653,92036.0,92018.0,0.16263953]
[1732029202803,0.108653,92036.0,92015.0,0.0017102]
[1732029203008,0.108653,92036.0,92019.0,0.16263953]
[1732029203200,0.108653,92036.0,92015.0,0.0017102]
[1732029203950,0.108653,92036.0,92015.0,0.0011102]
[1732029203951,0.118676,92016.0,92015.0,0.0011102]
[1732029204181,0.30533855,92016.0,92015.0,0.0011102]
[1732029204396,0.41533855,92016.0,92015.0,0.0011102]
[1732029205944,0.41533855,92016.0,92011.0,0.0004]
[1732029205945,0.228681,92012.0,92011.0,0.0004]
[1732029206177,0.108701,91995.0,91994.0,0.0017102]
[1732029206406,0.21776355,91995.0,91994.0,0.0017102]
[1732029206642,0.108701,91995.0,91994.0,0.0017102]
[1732029206886,0.01,92006.0,91994.0,0.0017102]
[1732029207133,0.1,92009.0,91994.0,0.0017102]
[1732029207353,0.108697,91999.0,91994.0,0.0017102]
[1732029207591,0.10906255,92004.0,91994.0,0.0017102]
[1732029207592,0.108701,91995.0,91994.0,0.0017102]
[1732029208460,0.108697,91999.0,91994.0,0.0017102]
[1732029208669,0.217393,91999.0,91994.0,0.0017102]
[1732029208881,0.018701,91995.0,91994.0,0.0017102]
[1732029209103,0.217391,92000.0,91994.0,0.0017102]
[1732029209322,0.108701,91995.0,91994.0,0.0017102]
[1732029209532,0.22776355,91995.0,91994.0,0.0017102]
[1732029211050,0.22776355,91995.0,91971.0,0.0004]
[1732029211051,0.118728,91972.0,91971.0,0.0004]
[1732029211330,0.118728,91972.0,91951.0,0.0004]
[1732029211331,0.118752,91952.0,91951.0,0.0004]
[1732029211545,0.108752,91952.0,91951.0,0.0004]
[1732029211749,0.108748,91956.0,91951.0,0.0004]
[1732029211970,0.21781455,91952.0,91951.0,0.0004]
[1732029212188,0.22781455,91952.0,91951.0,0.0004]
[1732029212407,0.32781455,91952.0,91951.0,0.0004]
[1732029212921,0.36180949,91952.0,91951.0,0.0004]
[1732029213350,0.36180949,91952.0,91940.0,0.0138638]
[1732029213351,0.118763,91943.0,91940.0,0.0138638]
[1732029213573,0.22782555,91943.0,91940.0,0.0138638]
[1732029214716,0.21782555,91943.0,91940.0,0.0138638]
[1732029214930,0.14399494,91952.0,91940.0,0.0138638]
[1732029215206,0.27170208,91951.0,91940.0,0.0138638]
[1732029215436,0.108731,91970.0,91940.0,0.0138638]
[1732029215651,0.16263953,91954.0,91943.0,0.217526]
[1732029215873,0.16263953,91975.0,91958.0,0.217488]
[1732029216094,0.16263953,91975.0,91951.0,0.0008553]
[1732029216330,0.16263953,91975.0,91963.0,0.108739]
[1732029216586,0.16263953,91975.0,91955.0,0.217497]
[1732029216801,0.16263953,91975.0,91961.0,0.108741]
[1732029217243,0.16263953,91975.0,91955.0,0.217497]
[1732029217471,0.16263953,91975.0,91952.0,0.10906255]
[1732029217700,0.01,91992.0,91977.0,0.108722]
[1732029217924,0.01,91992.0,91954.0,0.1]
[1732029217925,0.16263953,91974.0,91973.0,0.108727]
[1732029218147,0.16263953,91996.0,91985.0,0.108713]
[1732029218602,0.16263953,91996.0,91982.0,0.217433]
[1732029218817,0.16263953,91996.0,91976.0,0.03446143]
[1732029219035,0.16263953,91996.0,91977.0,0.10906255]
[1732029219282,0.16263953,91996.0,91988.0,0.108709]
[1732029219513,0.16263953,91996.0,91977.0,0.10906255]
[1732029219730,0.16263953,92010.0,91977.0,0.10906255]
[1732029219949,0.16263953,92010.0,92001.0,0.108693]
[1732029220178,0.16263953,92010.0,91978.0,0.11]
[1732029220179,0.16263953,92010.0,91985.0,0.023]
[1732029220445,0.16263953,92020.0,91987.0,0.1]
[1732029220911,0.16263953,92020.0,91992.0,0.01]
[1732029221141,0.16263953,92020.0,91994.0,0.1]
[1732029221366,0.16263953,92032.0,91994.0,0.1]
[1732029221367,0.16263953,92011.0,92010.0,0.108683]
[1732029221581,0.16263953,92032.0,92003.0,0.217382]
[1732029221582,0.16263953,92021.0,92003.0,0.217382]
[1732029221808,0.16263953,92021.0,92020.0,0.108672]
[1732029222249,0.16263953,92032.0,92017.0,0.217351]
[1732029222471,0.16263953,92032.0,92031.0,0.108659]
[1732029222978,0.03438487,92053.0,92038.0,0.108649]
[1732029223187,0.16263953,92040.0,92037.0,0.108651]
[1732029223413,0.03334518,92058.0,92028.0,0.10906255]
[1732029223637,0.37987553,92066.0,92030.0,0.43464]
[1732029223638,0.043458,92063.0,92030.0,0.43464]
[1732029223863,0.07363953,92056.0,92032.0,0.217315]
[1732029224081,0.07363953,92056.0,92033.0,0.10906255]
[1732029224357,0.07363953,92056.0,92051.0,0.108635]
[1732029224556,0.07363953,92056.0,92044.0,0.108642]
[1732029224774,0.07363953,92056.0,92033.0,0.10906255]
[1732029224775,0.07363953,92056.0,92045.0,0.108641]
[1732029225494,0.16263953,92066.0,92036.0,0.16263953]
[1732029225724,0.16263953,92056.0,92037.0,0.10906255]
[1732029225940,0.16263953,92066.0,92037.0,0.10906255]
[1732029226152,0.16263953,92066.0,92038.0,0.217301]
[1732029226373,0.16263953,92056.0,92055.0,0.10863]
[1732029226593,0.16263953,92066.0,92039.0,0.10906255]